bitfinex-derivatives/quotes_ETHF0:USTF0_20250918
["timestamp","ask_amount","ask_price","bid_price","bid_amount"]
[1758219999607,0.8258,4613.5,4613.4,0.219]
[1758219999806,0.8258,4613.5,4613.2,0.219]
[1758220000416,0.8258,4613.5,4613.1,0.219]
[1758220001109,0.5241,4613.5,4613.4,0.3985]
[1758220001610,0.8258,4613.5,4613.4,0.3985]
[1758220002507,0.5115,4613.5,4613.4,0.7032]
[1758220002708,0.1259,4614.5,4614.0,0.3985]
[1758220002901,0.5335,4615.0,4614.9,0.2012]
[1758220004909,0.8352,4615.0,4614.9,0.2012]
[1758220005110,0.8352,4615.0,4614.5,0.3047]
[1758220005416,0.7093,4614.9,4614.8,0.2012]
[1758220006111,0.7093,4614.9,4614.4,0.3047]
[1758220006312,0.7093,4614.2,4614.1,0.9222]
[1758220007915,0.2098,4614.2,4614.1,0.9222]
[1758220008117,0.1165,4614.5,4614.1,0.6175]
[1758220008317,0.3357,4615.0,4614.9,0.2012]
[1758220008616,0.8352,4615.0,4614.9,0.2012]
[1758220009715,0.8352,4615.0,4614.9,0.7032]
[1758220010013,0.8352,4615.0,4614.9,0.3985]
[1758220010214,0.8352,4615.0,4614.5,0.3047]
[1758220010417,0.8352,4615.0,4614.1,0.219]
[1758220010618,0.5335,4615.0,4614.1,0.5237]
[1758220010810,0.1259,4615.0,4614.1,0.5237]
[1758220011015,0.7093,4614.2,4614.1,0.7032]
[1758220011215,0.7093,4614.2,4614.1,0.9222]
[1758220013118,0.7093,4614.2,4614.1,0.219]
[1758220013419,0.7093,4614.2,4614.1,0.4202]
[1758220014318,0.7093,4614.2,4614.1,0.2012]
[1758220016816,0.7093,4614.2,4614.0,0.219]
[1758220017825,0.7093,4614.2,4614.1,0.1961]
[1758220021128,0.7093,4614.2,4614.1,0.7177]
[1758220021723,0.7093,4614.2,4614.1,0.1961]
[1758220022430,0.7093,4614.2,4614.1,0.7177]
[1758220023227,0.5115,4614.2,4614.1,0.7177]
[1758220023729,0.1165,4614.5,4614.1,0.7177]
[1758220024021,0.1259,4615.0,4614.2,0.3184]
[1758220024226,0.7107,4614.9,4614.8,0.1961]
[1758220024425,0.7107,4614.9,4614.8,0.7177]
[1758220024823,0.7107,4614.9,4614.8,0.3993]
[1758220025123,0.7107,4614.9,4614.8,0.1961]
[1758220025429,0.7107,4614.9,4614.1,0.3184]
[1758220025628,0.3025,4614.8,4614.1,0.53511]
[1758220025927,0.3025,4614.9,4614.1,0.3184]
[1758220026127,0.2108,4614.2,4614.1,0.7086]
[1758220026328,0.5133,4614.2,4614.1,0.7086]
[1758220026524,0.7143,4614.2,4614.0,0.219]
[1758220026723,0.1247,4614.5,4613.9,0.2161]
[1758220026724,0.839,4614.0,4613.9,0.2161]
[1758220027026,0.839,4614.0,4613.9,0.7157]
[1758220027724,0.3025,4614.4,4614.3,0.6924]
[1758220027927,0.2108,4614.5,4614.4,0.3022]
[1758220028133,0.5133,4614.5,4614.4,0.6924]
[1758220028432,0.839,4614.5,4614.4,0.3902]
[1758220028920,0.839,4614.5,4614.4,0.6924]
[1758220031726,0.1165,4615.5,4614.8,0.6924]
[1758220031927,0.4118,4615.4,4615.3,0.6924]
[1758220032526,0.7143,4615.4,4615.3,0.6924]
[1758220032725,0.7143,4615.4,4615.3,0.3902]
[1758220033025,0.7143,4615.4,4615.3,0.1945]
[1758220033219,0.839,4615.0,4614.9,0.3985]
[1758220033422,0.839,4615.0,4614.9,0.1945]
[1758220033629,0.839,4615.0,4614.3,0.3022]
[1758220033830,0.839,4615.0,4614.6,0.219]
[1758220034030,0.5365,4615.0,4614.6,0.5212]
[1758220034330,0.5365,4615.0,4614.9,0.6924]
[1758220034730,0.839,4615.0,4614.9,0.6924]
[1758220035329,0.839,4615.0,4614.9,0.3902]
[1758220035631,0.839,4615.0,4614.9,0.1945]
[1758220035932,0.839,4615.0,4614.6,0.5212]
[1758220036129,0.3025,4614.9,4614.6,0.5212]
[1758220036333,0.7143,4614.7,4614.6,0.9114]
[1758220038135,0.5133,4614.7,4614.6,0.9114]
[1758220040435,0.4118,4614.7,4614.6,0.1945]
[1758220040636,0.7143,4614.4,4614.3,0.1945]
[1758220040841,0.7143,4614.4,4614.3,0.219]
[1758220041642,0.7143,4614.4,4614.3,0.4135]
[1758220042543,0.7143,4614.4,4614.2,0.0216]
[1758220042838,0.7143,4614.4,4614.3,0.219]
[1758220043043,0.94228618,4614.4,4614.3,0.219]
[1758220043941,0.94228618,4614.4,4614.3,0.4135]
[1758220044242,0.94228618,4614.4,4614.3,0.219]
[1758220046343,0.7143,4614.4,4614.3,0.219]
[1758220048641,0.7143,4614.4,4614.2,0.0216]
[1758220048837,0.7143,4614.4,4614.3,0.219]
[1758220051741,0.4118,4614.9,4614.8,0.3902]
[1758220051946,0.7143,4614.9,4614.8,0.9114]
[1758220052138,0.7143,4614.9,4614.8,0.6092]
[1758220053746,0.7143,4614.9,4614.8,0.9114]
[1758220055651,0.7143,4614.9,4614.8,0.4135]
[1758220055841,0.7143,4614.9,4614.8,0.219]
[1758220056734,0.7143,4614.9,4614.8,0.4213]
[1758220056943,0.7143,4614.9,4614.8,0.9291]
[1758220056944,0.5099,4614.9,4614.8,0.9291]
[1758220057146,0.702,4614.9,4614.8,0.9291]
[1758220057338,0.702,4614.9,4614.8,0.4213]
[1758220057541,0.702,4614.9,4614.8,0.219]
[1758220058145,0.702,4614.9,4614.8,0.4213]
[1758220058846,0.702,4614.9,4614.8,0.7254]
[1758220059047,0.702,4614.9,4614.8,0.4213]
[1758220059545,0.7052,4614.3,4614.2,5.4773]
[1758220059746,0.7052,4614.3,4614.2,5.6963]
[1758220060247,0.7052,4614.3,4614.2,6.2041]
[1758220062643,0.7052,4614.3,4614.2,5.4773]
[1758220062848,0.7052,4614.3,4614.2,5.494]
[1758220063347,0.7052,4614.3,4614.2,5.6963]
[1758220063550,0.5131,4614.3,4614.2,6.2041]
[1758220064043,0.3057,4614.3,4614.2,6.2041]
[1758220064351,0.8232,4615.0,4614.9,0.2023]
[1758220064551,1.0512853,4615.0,4614.9,0.4213]
[1758220065452,1.0512853,4615.0,4614.9,0.9291]
[1758220065947,1.0512853,4615.0,4614.9,0.625]
[1758220067053,1.0512853,4615.0,4614.7,0.0216]
[1758220067254,0.9332853,4614.9,4614.8,0.4213]
[1758220068353,0.9332853,4614.9,4614.8,0.7254]
[1758220068554,0.9332853,4614.9,4614.8,0.9291]
[1758220068852,0.2280853,4614.9,4614.8,0.9291]
[1758220069355,0.7411853,4614.9,4614.8,0.625]
[1758220069952,0.5131,4614.9,4614.8,0.9291]
[1758220072059,0.74762985,4614.9,4614.8,0.9291]
[1758220072662,0.93972985,4614.9,4614.8,0.9291]
[1758220073760,0.23452985,4614.9,4614.8,0.9291]
[1758220073955,0.74512985,4614.9,4614.8,0.9291]
[1758220074361,0.23452985,4614.9,4614.8,0.9291]
[1758220075359,0.74512985,4614.9,4614.8,0.9291]
[1758220076358,0.95402985,4614.9,4614.8,0.9291]
[1758220076662,0.95402985,4614.9,4614.8,0.4213]
[1758220077362,0.23452985,4614.9,4614.8,0.9206]
[1758220078464,0.74512985,4614.9,4614.8,0.9206]
[1758220080864,0.95402985,4614.9,4614.8,0.9206]
[1758220082064,0.23452985,4614.9,4614.8,0.9206]
[1758220082762,0.54462985,4614.9,4614.8,0.9206]
[1758220083261,0.23452985,4614.9,4614.8,0.9206]
[1758220084055,0.022,4616.3,4615.4,0.4112]
[1758220084358,0.2005,4615.8,4615.7,0.2064]
[1758220084558,0.95406163,4615.8,4615.7,0.4112]
[1758220085364,0.95406163,4615.8,4615.0,0.2945]
[1758220085566,0.7211,4615.1,4615.0,0.6942]
[1758220085966,0.7211,4615.1,4615.0,0.9132]
[1758220089870,0.3158,4615.4,4615.3,0.3997]
[1758220090070,0.3158,4615.4,4615.3,0.7091]
[1758220090368,0.7211,4615.4,4615.3,0.5161]
[1758220090575,0.7211,4615.4,4615.3,0.7091]
[1758220096371,0.5197,4615.4,4615.3,0.7091]
[1758220097071,0.1247,4616.0,4615.3,0.3997]
[1758220097277,0.022,4616.3,4615.3,0.3997]
[1758220097478,0.44424734,4616.2,4615.3,0.3997]
[1758220097676,0.022,4616.3,4615.3,0.3997]
[1758220097874,0.22758634,4616.2,4615.3,0.3997]
[1758220098171,0.022,4616.3,4615.8,0.2067]
[1758220098376,0.5197,4615.9,4615.8,0.3997]
[1758220098578,0.5197,4615.9,4615.8,0.9201]
[1758220100081,0.7211,4615.9,4615.8,0.9201]
[1758220104477,0.7211,4615.9,4615.8,0.6107]
[1758220105585,0.7211,4615.9,4615.8,0.4177]
[1758220106483,0.5197,4615.9,4615.8,0.9201]
[1758220109282,0.2259,4616.3,4616.2,0.7091]
[1758220109477,0.1179,4617.5,4616.3,0.3094]
[1758220109677,0.2039,4616.4,4616.3,0.7091]
[1758220109877,0.5197,4616.4,4616.3,0.7091]
[1758220110588,0.7211,4616.4,4616.3,0.7091]
[1758220112288,0.7211,4616.4,4616.3,0.6187]
[1758220112992,0.7211,4616.4,4616.3,0.219]
[1758220113187,0.94393621,4616.4,4616.3,0.219]
[1758220113389,0.7211,4616.4,4616.3,0.219]
[1758220114092,0.7211,4616.4,4616.3,0.4257]
[1758220114890,0.7211,4616.4,4616.3,0.219]
[1758220115695,0.7211,4616.4,4616.3,0.4257]
[1758220115890,0.7211,4616.4,4616.3,0.9284]
[1758220116396,0.94385326,4616.4,4616.3,0.9284]
[1758220118796,0.94385326,4616.4,4616.3,0.618]
[1758220118996,0.94385326,4616.4,4616.3,0.219]
[1758220119696,0.94385326,4616.4,4615.7,0.3104]
[1758220119897,0.7021,4615.9,4615.8,0.219]
[1758220120199,0.7021,4615.9,4615.8,0.9256]
[1758220120599,0.5082,4615.9,4615.8,0.9256]
[1758220121396,0.7021,4615.9,4615.8,0.9256]
[1758220126904,0.5079,4616.5,4616.4,0.2039]
[1758220127209,0.5079,4616.5,4616.4,0.5143]
[1758220127210,0.73069053,4616.5,4616.4,0.5143]
[1758220127411,1.04279053,4616.5,4616.4,0.2039]
[1758220129311,1.04279053,4616.5,4616.1,0.3104]
[1758220129509,0.7021,4616.2,4616.1,0.5143]
[1758220129725,0.92492442,4616.2,4616.1,0.5143]
[1758220130119,0.92492442,4616.2,4615.6,5.2966]
[1758220130423,0.7021,4615.8,4615.7,0.219]
[1758220130622,0.7021,4615.8,4615.7,0.4229]
[1758220130818,0.7021,4615.8,4615.7,0.219]
[1758220132720,0.7021,4615.8,4615.6,0.0216]
[1758220133020,0.22495158,4615.7,4615.6,0.0216]
[1758220133222,0.92705158,4615.7,4615.6,0.2406]
[1758220133423,0.92705158,4615.7,4615.6,0.219]
[1758220136425,0.7021,4615.7,4615.6,0.219]
[1758220136823,0.4043,4615.1,4615.0,0.2114]
[1758220137020,0.6956,4615.1,4615.0,0.4304]
[1758220137224,0.6956,4615.1,4615.0,0.7309]
[1758220137824,0.6956,4615.1,4615.0,0.2114]
[1758220138025,0.6956,4615.1,4615.0,0.219]
[1758220138226,0.6956,4615.1,4615.0,0.6354]
[1758220138424,0.6956,4615.1,4615.0,0.9359]
[1758220139430,0.6956,4615.1,4615.0,0.4304]
[1758220139732,0.6956,4615.1,4615.0,0.2114]
[1758220139930,0.6956,4615.1,4615.0,0.4304]
[1758220140132,0.6956,4615.1,4615.0,0.2114]
[1758220140331,0.6956,4615.1,4615.0,0.4304]
[1758220140734,0.6956,4615.1,4615.0,0.219]
[1758220142334,0.6956,4615.1,4615.0,0.4304]
[1758220142634,0.6956,4615.1,4615.0,0.7309]
[1758220143032,0.6956,4615.1,4615.0,0.9359]
[1758220146433,0.6956,4615.1,4615.0,0.219]
[1758220146635,0.1246,4615.0,4614.8,35.1236]
[1758220146934,0.8385,4615.0,4614.9,0.219]
[1758220148327,0.7139,4615.0,4614.9,0.9519]
[1758220149137,0.8385,4615.0,4614.9,0.9519]
[1758220151039,0.8385,4615.0,4614.9,0.633]
[1758220151432,0.8385,4615.0,4614.9,0.9519]
[1758220152436,0.8385,4615.0,4614.9,0.633]
[1758220154339,0.7139,4615.0,4614.9,0.9519]
[1758220154937,0.2961,4615.0,4614.9,0.9519]
[1758220155241,0.5033,4615.0,4614.9,0.9519]
[1758220155440,0.2961,4615.0,4614.9,0.9519]
[1758220155644,0.7139,4615.4,4615.3,0.414]
[1758220155841,0.7139,4615.4,4615.3,0.9519]
[1758220156443,0.5033,4615.4,4615.3,0.9519]
[1758220156645,0.2961,4615.4,4615.3,0.9519]
[1758220156839,0.5033,4615.4,4615.3,0.9519]
[1758220157539,0.7139,4615.4,4615.3,0.9519]
[1758220158141,0.2961,4615.9,4615.3,1.02278]
[1758220158342,0.5033,4615.9,4615.8,0.414]
[1758220158545,0.5033,4615.9,4615.8,0.9519]
[1758220158843,0.7139,4615.9,4615.8,0.9519]
[1758220159245,0.5033,4615.9,4615.8,0.9519]
[1758220159741,0.2961,4615.9,4615.8,0.9519]
[1758220159941,0.5033,4615.9,4615.8,0.9519]
[1758220160840,0.7139,4615.9,4615.8,0.9519]
[1758220161048,0.7139,4615.9,4615.8,0.633]
[1758220161536,0.7139,4615.9,4615.8,0.9519]
[1758220165651,0.7139,4615.9,4615.8,0.633]
[1758220165852,0.7139,4615.9,4615.8,0.219]
[1758220166452,0.93054,4615.9,4615.6,0.0216]
[1758220166850,0.7139,4615.9,4615.6,0.0216]
[1758220168452,0.93055,4615.9,4615.6,0.0216]
[1758220168648,0.22304233,4615.8,4615.6,0.0216]
[1758220168854,0.7139,4615.7,4615.6,0.0216]
[1758220169452,0.7139,4615.7,4615.3,0.219]
[1758220169656,0.4178,4615.4,4615.3,0.219]
[1758220169856,0.7139,4615.4,4615.3,0.219]
[1758220176258,0.9369926,4615.4,4615.1,0.0216]
[1758220176559,0.22309069,4615.3,4615.1,0.0216]
[1758220176860,0.93739069,4615.2,4615.1,0.0216]
[1758220177260,0.93739069,4615.2,4614.7,0.219]
[1758220177451,0.4033,4614.8,4614.7,0.4264]
[1758220177653,0.7143,4614.8,4614.7,0.219]
[1758220178755,0.7143,4614.8,4614.0,0.2914]
[1758220178956,0.4033,4614.2,4614.1,0.6337]
[1758220179255,0.311,4614.2,4614.1,0.9251]
[1758220179659,0.5177,4614.2,4614.1,0.9251]
[1758220179958,0.311,4614.4,4614.2,0.2914]
[1758220180160,0.311,4614.9,4614.2,0.2914]
[1758220180760,0.2067,4614.3,4614.2,0.7061]
[1758220180959,0.5177,4614.3,4614.2,0.7061]
[1758220182560,0.1199,4615.0,4614.8,0.4987]
[1758220182561,0.7143,4614.9,4614.8,0.4987]
[1758220182762,0.7143,4614.9,4614.8,0.7061]
[1758220185162,0.7143,4614.9,4614.8,0.4147]
[1758220185468,0.7143,4614.9,4614.8,0.7061]
[1758220185664,0.7143,4614.9,4614.8,0.4147]
[1758220188370,0.7143,4614.9,4614.7,0.219]
[1758220189870,0.7143,4614.1,4614.0,0.4988]
[1758220190065,0.7143,4614.1,4614.0,0.9251]
[1758220193065,0.1199,4614.0,4613.9,0.229]
[1758220193270,0.8342,4614.0,4613.9,0.39]
[1758220193464,0.8342,4614.0,4613.9,0.3684]
[1758220193866,0.8342,4614.0,4613.9,0.161]
[1758220194067,0.8342,4614.0,4613.6,0.2914]
[1758220194268,0.8342,4614.0,4613.7,0.219]
[1758220194772,0.7141,4613.9,4613.7,0.219]
[1758220195166,0.5271,4613.5,4613.4,0.4972]
[1758220195368,0.3138,4613.4,4612.9,0.3027]
[1758220195567,0.8409,4613.0,4612.9,0.6984]
[1758220195767,0.7141,4613.0,4612.9,0.9174]
[1758220196169,0.1268,4613.5,4612.9,0.5217]
[1758220196373,0.5271,4613.5,4613.4,0.4972]
[1758220196574,0.5271,4613.5,4613.4,0.7162]
[1758220196777,0.8409,4613.5,4613.4,0.7162]
[1758220197475,0.8409,4613.5,4613.4,0.4135]
[1758220197777,0.8409,4613.5,4613.4,0.219]
[1758220200273,0.8409,4613.5,4613.3,0.219]
[1758220200475,0.8409,4613.5,4613.2,0.0216]
[1758220201979,0.4003,4613.3,4613.2,0.0216]
[1758220202175,0.7141,4613.3,4613.2,0.0216]
[1758220202375,0.7141,4613.3,4613.0,0.219]
[1758220204373,0.4003,4613.3,4613.2,0.1945]
[1758220204573,0.7141,4613.3,4613.2,0.6984]
[1758220204780,0.5061,4613.3,4613.2,0.6984]
[1758220205680,0.7141,4613.3,4613.2,0.6984]
[1758220208888,0.7141,4613.3,4613.2,0.3957]
[1758220209078,0.7141,4613.3,4613.2,0.1945]
[1758220209384,0.7141,4613.3,4613.0,0.2406]
[1758220209884,0.7141,4613.3,4613.2,0.6998]
[1758220213484,0.7141,4613.3,4613.2,0.4082]
[1758220214080,0.7141,4613.3,4613.2,0.6998]
[1758220215386,0.7141,4613.3,4613.2,0.4082]
[1758220215574,0.7141,4613.3,4613.2,0.212]
[1758220217387,0.7141,4613.3,4613.2,0.6998]
[1758220217687,0.5013,4613.9,4613.8,0.6998]
[1758220218484,0.7074,4613.9,4613.8,0.6998]
[1758220220287,0.7074,4613.9,4613.8,0.4082]
[1758220223089,0.7074,4613.9,4613.5,0.2916]
[1758220223290,0.4024,4613.9,4613.2,0.38995]
[1758220223486,0.5013,4613.3,4613.2,0.79815]
[1758220223691,0.5013,4613.3,4613.2,1.08975]
[1758220224592,0.5013,4613.3,4613.2,0.6998]
[1758220224794,0.7074,4613.3,4613.2,0.6998]
[1758220224986,0.7074,4613.3,4613.2,0.212]
[1758220225182,0.7074,4613.3,4613.0,0.2406]
[1758220225587,0.7074,4613.3,4613.0,0.0216]
[1758220228991,0.7074,4613.1,4613.0,0.0216]
[1758220229191,0.9282504,4613.1,4613.0,0.0216]
[1758220229393,0.8277,4612.0,4611.9,0.9188]
[1758220229795,0.8277,4612.0,4611.9,0.4082]
[1758220230094,0.7074,4612.0,4611.9,0.6998]
[1758220230793,0.8277,4612.0,4611.9,0.6998]
[1758220233095,0.7074,4612.0,4611.9,0.6998]
[1758220233388,0.1203,4613.0,4612.3,0.6998]
[1758220233591,0.5227,4613.0,4612.9,0.212]
[1758220233794,0.8277,4613.0,4612.9,0.212]
[1758220233993,0.8277,4613.0,4611.7,0.3132]
[1758220234297,0.5013,4612.1,4612.0,0.9188]
[1758220236200,0.7074,4612.1,4612.0,0.9188]
[1758220237894,0.7074,4612.1,4612.0,0.219]
[1758220238995,0.7074,4612.1,4612.0,0.4192]
[1758220239394,0.7074,4612.1,4612.0,0.219]
[1758220242706,0.7074,4612.1,4612.0,0.4192]
[1758220244206,0.7074,4612.1,4612.0,0.7116]
[1758220244603,0.5013,4612.1,4612.0,0.7116]
[1758220245401,0.2102,4612.8,4612.7,0.79219]
[1758220245701,0.5363,4613.5,4613.4,0.7116]
[1758220245906,0.8411,4613.5,4613.4,0.7116]
[1758220246105,0.8411,4613.5,4613.4,0.4022]
[1758220248105,0.8411,4613.5,4613.4,0.7116]
[1758220248405,0.2102,4613.6,4613.5,0.59012]
[1758220248712,0.515,4613.6,4613.5,0.79212]
[1758220249107,0.7208,4613.6,4613.5,0.7116]
[1758220250405,0.3048,4613.9,4613.8,0.7116]
[1758220250712,0.7208,4614.4,4614.3,0.2002]
[1758220251413,0.7208,4614.4,4614.0,0.3094]
[1758220252707,0.7208,4614.4,4613.9,0.38989]
[1758220252902,0.416,4614.1,4614.0,0.7116]
[1758220253108,0.7208,4614.1,4614.0,0.7116]
[1758220254007,0.7208,4614.1,4613.8,0.3899]
[1758220254008,0.1177,4614.0,4613.6,0.3094]
[1758220254213,0.5244,4613.5,4613.4,0.1991]
[1758220254413,0.8365,4613.5,4613.4,0.2971]
[1758220254613,0.8365,4613.5,4613.4,0.7894]
[1758220255714,0.8365,4613.5,4613.4,0.4935]
[1758220256215,0.219,4615.5,4613.4,0.098]
[1758220256414,0.43757831,4615.0,4613.4,0.098]
[1758220256714,0.22085831,4614.9,4613.4,0.098]
[1758220256914,0.22085831,4614.8,4613.4,0.098]
[1758220257114,0.21672,4614.8,4613.4,0.098]
[1758220257309,0.219,4615.5,4613.4,0.098]
[1758220257605,0.43754414,4615.0,4613.4,0.098]
[1758220257809,0.43754414,4614.9,4613.4,0.098]
[1758220258014,0.22082414,4614.8,4613.4,0.098]
[1758220258216,0.21672,4615.0,4613.4,0.098]
[1758220258415,0.43751272,4614.9,4613.4,0.098]
[1758220258610,0.22079272,4614.8,4613.4,0.098]
[1758220258817,0.21672,4615.0,4613.4,0.48793]
[1758220259017,0.43751272,4614.9,4613.4,0.48793]
[1758220259217,0.22079272,4614.8,4613.4,0.48793]
[1758220259517,0.21672,4615.0,4613.4,0.098]
[1758220259718,0.4374911,4614.9,4613.4,0.098]
[1758220259922,0.2207711,4614.8,4613.4,0.098]
[1758220260114,0.219,4614.9,4613.5,0.0216]
[1758220260313,0.2207711,4614.8,4613.5,0.0216]
[1758220260510,0.21672,4614.8,4613.5,0.0216]
[1758220260722,0.219,4614.9,4613.5,0.0216]
[1758220261017,0.43749131,4614.8,4613.5,0.0216]
[1758220261318,0.7188,4613.6,4613.5,0.0216]
[1758220263121,0.7188,4613.6,4613.5,0.2207]
[1758220263721,0.7188,4613.6,4613.5,0.1991]
[1758220264219,0.7188,4613.3,4613.2,0.6914]
[1758220265424,0.5118,4613.3,4613.2,0.6914]
[1758220266424,0.512,4613.9,4613.8,0.4163]
[1758220266719,0.1214,4615.5,4614.4,0.2984]
[1758220266720,0.3106,4614.9,4614.4,0.2984]
[1758220266922,0.706,4614.9,4614.8,0.2101]
[1758220267122,0.1214,4614.5,4614.4,0.2984]
[1758220267323,0.8274,4614.5,4614.1,0.2984]
[1758220267625,0.8274,4614.0,4613.9,0.2101]
[1758220268631,0.706,4614.0,4613.9,0.7147]
[1758220270030,0.8274,4614.0,4613.9,0.7147]
[1758220270331,0.8274,4614.0,4613.9,0.4163]
[1758220271029,0.8274,4614.0,4613.9,0.2101]
[1758220271531,0.8274,4614.0,4613.1,35.117]
[1758220271532,0.512,4613.3,4613.2,0.7147]
[1758220271731,0.706,4613.3,4613.2,0.9327]
[1758220271927,0.706,4613.3,4613.1,35.335]
[1758220272136,0.3106,4613.2,4613.1,35.335]
[1758220272331,0.3106,4613.2,4613.1,35.117]
[1758220275036,0.706,4613.1,4613.0,0.218]
[1758220276834,0.706,4613.1,4612.9,0.0216]
[1758220276835,0.8274,4613.0,4612.9,0.0216]
[1758220277235,0.1214,4612.5,4612.3,0.218]
[1758220277438,0.706,4612.4,4612.3,0.218]
[1758220277643,0.706,4612.4,4612.3,0.4281]
[1758220277936,0.706,4612.4,4612.3,0.9327]
[1758220278133,0.512,4612.4,4612.3,0.9327]
[1758220279040,0.1214,4613.0,4612.3,1.32272]
[1758220279240,0.706,4612.9,4612.8,0.2101]
[1758220279542,0.3106,4613.4,4612.9,0.2984]
[1758220279743,0.8274,4613.5,4613.4,0.2101]
[1758220280043,1.04859758,4613.5,4613.4,0.2101]
[1758220280242,0.8274,4613.5,4613.4,0.7147]
[1758220280439,0.8274,4613.5,4613.4,0.4163]
[1758220280746,0.8274,4613.5,4613.4,0.7147]
[1758220281145,0.8274,4613.5,4613.0,0.0216]
[1758220281342,0.2014,4613.2,4613.1,0.38996]
[1758220281547,0.512,4613.1,4613.0,0.0216]
[1758220281747,0.512,4613.1,4613.0,0.41156]
[1758220282848,0.512,4613.1,4613.0,0.38996]
[1758220283646,0.1214,4613.0,4612.9,0.218]
[1758220283841,0.8274,4613.0,4611.6,36.09221]
[1758220284042,0.1214,4612.0,4611.6,35.117]
[1758220284247,0.3106,4611.7,4611.6,35.50708]
[1758220284549,0.3106,4611.7,4611.6,35.335]
[1758220284750,0.3106,4611.7,4611.6,35.72508]
[1758220284942,0.3106,4611.7,4611.6,35.335]
[1758220286648,0.3106,4611.7,4611.6,35.336]
[1758220288450,0.3106,4611.7,4611.6,35.117]
[1758220288752,0.3106,4611.7,4611.6,35.336]
[1758220303368,0.3106,4611.7,4611.6,34.336]
[1758220307977,0.3106,4611.7,4611.6,34.117]
[1758220308277,0.6333,4611.5,4611.4,0.0216]
[1758220308577,0.6333,4611.5,4611.4,0.2406]
[1758220308777,0.4359,4611.5,4611.4,0.219]
[1758220311679,0.6333,4611.5,4611.4,0.219]
[1758220313474,0.8334,4611.5,4611.3,0.02168609]
[1758220313775,0.2222134,4611.4,4611.3,0.02168609]
[1758220313982,0.9443134,4611.4,4611.3,0.02168609]
[1758220314683,5.1611734,4611.4,4611.3,0.02168609]
[1758220314884,4.9443134,4611.4,4611.2,0.0216]
[1758220315086,0.2222134,4611.3,4611.2,0.0216]
[1758220315277,0.9443134,4611.3,4611.2,0.0216]
[1758220315476,0.5341,4611.0,4610.9,0.219]
[1758220315686,1.0597134,4611.0,4610.9,0.219]
[1758220316587,0.8375,4611.0,4610.9,0.219]
[1758220318594,0.4188,4611.0,4610.9,0.219]
[1758220318982,0.6275,4611.0,4610.9,0.219]
[1758220319284,0.8375,4611.0,4610.9,0.219]
[1758220320089,0.8375,4611.0,4610.7,0.0216]
[1758220321288,0.8375,4611.0,4610.5,0.219]
[1758220323195,0.6275,4611.0,4610.5,0.219]
[1758220325594,0.21,4610.6,4610.5,0.219]
[1758220325792,0.7168,4610.6,4610.5,0.219]
[1758220326094,0.7168,4610.6,4610.1,34.3696]
[1758220326295,0.6997,4610.3,4610.2,0.219]
[1758220326988,0.3096,4610.3,4610.2,0.219]
[1758220327493,0.3096,4610.3,4610.2,4.219]
[1758220327696,0.3096,4610.3,4610.2,0.219]
[1758220328489,0.1154,4611.0,4610.2,4.43591]
[1758220328691,0.06111883,4611.0,4610.8,0.39015]
[1758220328995,0.06111883,4611.0,4610.9,0.219]
[1758220329290,0.3096,4611.3,4610.9,0.219]
[1758220329491,0.3096,4611.4,4610.9,0.219]
[1758220329690,0.4329,4611.0,4610.9,0.219]
[1758220331094,0.1188,4611.5,4610.9,0.219]
[1758220331295,0.1188,4611.5,4611.3,0.39011]
[1758220331494,0.1188,4611.5,4611.4,0.219]
[1758220331694,0.4284,4611.5,4611.4,0.219]
[1758220336391,0.6256,4611.5,4611.4,0.219]
[1758220337000,0.4284,4611.5,4611.4,0.219]
[1758220337693,0.3096,4611.9,4611.8,0.39006]
[1758220339700,0.1233,4612.5,4611.8,0.39006]
[1758220339701,0.3096,4612.2,4612.1,0.39004]
[1758220339997,0.3096,4612.2,4612.1,0.60904]
[1758220341096,0.6997,4612.2,4612.1,0.219]
[1758220341402,0.3901,4611.6,4611.5,0.39009]
[1758220341600,0.6997,4611.6,4611.5,0.39009]
[1758220341901,0.1233,4610.5,4610.4,0.39019]
[1758220342099,0.4329,4610.5,4610.4,0.60819]
[1758220342296,0.4329,4610.5,4610.4,0.39019]
[1758220342497,0.6301,4610.5,4610.4,0.60819]
[1758220342698,0.823,4610.5,4610.4,0.39019]
[1758220342898,0.823,4610.5,4610.4,0.60819]
[1758220344200,0.823,4610.5,4610.4,0.218]
[1758220345198,0.3901,4610.2,4610.1,34.3696]
[1758220345392,0.6997,4610.2,4610.1,34.5876]
[1758220349501,0.6997,4610.2,4610.1,34.3696]
[1758220349698,0.6997,4610.2,4610.1,34.5876]
[1758220350593,0.5068,4610.2,4610.1,34.5876]
[1758220350796,0.5068,4610.2,4610.1,34.97781]
[1758220351001,0.1233,4610.5,4610.2,0.3902]
[1758220351196,0.3205,4610.5,4610.2,0.3902]
[1758220351393,0.3096,4610.4,4610.1,34.5876]
[1758220351599,0.5068,4610.2,4610.1,34.5876]
[1758220352102,0.5068,4610.2,4610.1,34.5886]
[1758220352499,0.5068,4610.2,4610.1,34.3696]
[1758220352700,0.5068,4610.2,4610.1,34.5886]
[1758220354506,0.5068,4610.2,4610.1,34.3696]